{"text_format":"1","workbook":"xlsx","n_sheets":1,"sheets":["CATÁLOGO DOPI (2)"],"not_rendered":{"charts":0,"images":2,"macros":1,"external_links":2,"defined_names":135,"comments":0,"pivot_tables":0},"unopened":[],"bounds":{"document_bytes":16777216,"sheet_cells":100000,"rows_first":2000,"rows_last":500,"rows_between":2000,"halvings":0,"cell_chars":16384,"cell_head_chars":4096},"cells_cut":0,"cells_raw":0,"read":"whole","date_system":"1900"}

{"sheet":"CATÁLOGO DOPI (2)","index":0,"n_rows":187,"n_cols":7,"rows_kept":187,"cut":false,"hidden":false,"merged":[[0,2,0,5],[1,2,4,5],[6,1,8,1],[9,2,9,5],[10,1,11,1],[10,2,11,5],[10,6,11,6],[13,0,13,6],[16,0,16,6],[185,0,186,4],[184,0,184,4]]}
[null,"MUNICIPIO DE ZAPOPAN, JALISCO","LICITACIÓN PÚBLICA No."]
[null,"DIRECCIÓN DE CONSERVACION DE INMUEBLES"]
[null,"UNIDAD DE PRESUPUESTOS Y CONTRATACION DE OBRA PUBLICA"]
[]
[]
[null,"DESCRIPCIÓN GENERAL DE LOS TRABAJOS:",null,null,"FECHA DE INICIO:"]
[null,"Mantenimiento y adecuacion de espacios con trabajos de sustitucion de cubiertas, pisos de concreto, instalaciones electricas, hidraulicas, sanitarias, asi obras complementarias, en el mercado Ciudad Granja, con domicilio calzada norte, Calzada de las Palmas en colonia Ciudad Granja en Zapopan Jalisco.",null,null,"FECHA DE TERMINACIÓN:"]
[null,null,null,null,"PLAZO DE EJECUCIÓN:"]
[null,null,null,null,"FECHA DE PRESENTACIÓN:"]
[null,"RAZÓN SOCIAL DEL LICITANTE:","NOMBRE, CARGO Y FIRMA DEL LICITANTE",null,null,null,"DOCUMENTO"]
[null,null,null,null,null,null,"PE1"]
[]
[]
["CATÁLOGO DE CONCEPTOS"]
[]
["CLAVE","DESCRIPCIÓN ","UNIDAD","CANTIDAD","PRECIO UNITARIO ($)","PRECIO UNITARIO ($) CON LETRA","IMPORTE ($) M. N."]
[]
["A","MERCADO CIUDAD GRANJA",null,null,null,null,{"$f":"G19+G40+G56+G66+G76+G103+G121+G124+G126+G135+G146+G149+G151","v":0}]
["A.1","PRELIMINARES",null,null,null,null,{"$f":"SUM(G20:G39)","v":0}]
["DOPI-001","DESMONTAJE DE LAMINA GALVANIZADA DISTINTOS CALIBRES DE ESPESOR SIN RECUPERACIÓN, A UNA ALTURA DE HASTA 12 M. INCLUYE: ACARREO, DESCENSO Y RETIRO FUERA DE LA OBRA, EQUIPO, ANDAMIOS, MATERIALES, HERRAMIENTA Y MANO DE OBRA.","M2",735,null,{"$f":"Enletras(E20)","v":" Pesos   0 0/100 M.N"},{"$f":"ROUND((E20*D20),2)","v":0}]
["DOPI-002","DESMONTAJE DE ESTRUCTURA METALICA EN TECHUMBRE, COLUMNAS  Y ELEMENTOS TUBULARES DE ACERO (POLIN MONTIN, PTR, ENTRE OTROS) CON RECUPERACIÓN PARA SU POSTERIOR REHUBICACIÓN, INCLUYE: ANDAMIOS, MANO DE OBRA, CORTES, EQUIPO, HERRAMIENTA Y ACARREO DE MATERIAL PRODUCTO DE DESMONTAJES, HASTA EL LUGAR ASIGNADO.","KG",6300,null,{"$f":"Enletras(E21)","v":" Pesos   0 0/100 M.N"},{"$f":"ROUND((E21*D21),2)","v":0}]
["DOPI-003","DESMONTAJE DE BAJANTE PLUVIAL ADOSADO EN MURO CON UNA LONGITUD DE 12 MT SIN RECUPERACIÓN, A UNA ALTURA DE HASTA 12 MT, INCLUYE: ACARREO Y RETIRO FUERA DE LA OBRA, EQUIPO, HERRAMIENTA Y MANO DE OBRA.","PZA",13,null," Pesos   0 0/100 M.N",0]
["DOPI-004","DESMONTAJE DE TUBERÍA DE ACERO GALVANIZADO O COBRE PARA LÍNEA DE GAS Y/O AGUA POTABLE, SIN RECUPERACIÓN A UNA ALTURA DE 8.00 MTS, INCLUYE: ACARREO Y RETIRO FUERA DE LA OBRA, MATERIALES, MANO DE OBRA, EQUIPO, CORTES Y HERRAMIENTA.","M",1155,null," Pesos   0 0/100 M.N",0]
["DOPI-005","DESMONTAJE DE SALIDA ELECTRICA EXISTENTE (CONTACTO, APAGADOR, LUMINARIA, CENTROS DE CARGA Y/O BASES DE MEDICION) SIN RECUPERACIÓN, A UNA ALTURA DE HASTA 12 M. INCLUYE: ACARREO, DESCENSO Y RETIRO FUERA DE LA OBRA, AL LUGAR AUTORIZADO, EQUIPO, ANDAMIOS, MATERIALES, HERRAMIENTA Y MANO DE OBRA.","SAL ",78,null," Pesos   0 0/100 M.N",0]
["DOPI-006","DESMONTAJE CON RECUPERACION DE W.C., LAVABO Y/O MINGITORIO. INCLUYE: TAPONAMIENTO CON TAPON CAPA DE 1/2\" Y DESCONEXION DE LA RED DE AGUA Y SANITARIA Y ACCESORIOS.","PZA",8,null," Pesos   0 0/100 M.N",0]
["DOPI-007","DESMONTAJE DE ACCESORIOS SANITARIOS (DOSIFICADOR DE JABON, DOSIFICADOR DE PAPEL, DOSIFICADOR DE JABON, SECADORES, ETC.) SIN RECUPERACIÓN, INCLUYE:  HERRAMIENTA, MANO DE OBRA, EQUIPO, ACARREO INTERNO Y APILE PARA RETIRO POSTERIOR.","PZA",8,null," Pesos   0 0/100 M.N",0]
["DOPI-008","DESMONTAJE DE MAMPARAS SANITARIAS  CON RECUPERACIÓN,  INCLUYE: ACARREOS DENTRO DE LA OBRA Y POSTERIORMENTE DONDE INDIQUE SUPERVISIÓN FUERA DE LA OBRA, MANO DE OBRA, EQUIPO Y HERRAMIENTA.","M2",28.35,null," Pesos   0 0/100 M.N",0]
["DOPI-009","DESMONTAJE DE  LUMINARIA EXISTENTE SIN RECUPERACIÓN, A UNA ALTURA DE HASTA 12 M. INCLUYE: ACARREO, DESCENSO Y RETIRO FUERA DE LA OBRA, AL LUGAR AUTORIZADO, EQUIPO, ANDAMIOS, MATERIALES, HERRAMIENTA Y MANO DE OBRA.","SAL ",26,null," Pesos   0 0/100 M.N",0]
["DOPI-010","DEMOLICIÓN DE CONCRETO SIMPLE EN BANQUETAS, POR MEDIOS MECÁNICOS, INCLUYE: ACARREO DEL MATERIAL A BANCO DE OBRA PARA SU POSTERIOR RETIRO Y LIMPIEZA DEL ÁREA DE LOS TRABAJOS, MANO DE OBRA, EQUIPO Y HERRAMIENTA.","M3",115.5,null," Pesos   0 0/100 M.N",0]
["DOPI-011","DEMOLICION DE BANQUETAS Y GUARNICIONES EXISTENTES EN DIVERSAS AREAS DE LA VÍA PÚBLICA, POR MEDIOS MANUALES Y/O MECANICOS, RETIRANDO CONCRETO, MURETES, FIRMES, RELLENOS, USANDO CORTE CON DISCO, ROTOMARTILLO, MARRO Y CINCEL, INCLUYE: ACARREOS DEL MATERIAL A BANCO DE OBRA PARA SU POSTERIOR RETIRO Y LIMPIEZA DEL AREA DE LOS TRABAJOS, MANO DE OBRA,  EQUIPO Y HERRAMIENTA.","M3",4.2,null," Pesos   0 0/100 M.N",0]
["DOPI-012","DEMOLICIÓN A MANO DE ADOQUIN CON UN ESPESOR HASTA 10CMS, INCLUYE: HERRAMIENTA, MANO DE OBRA, ACARREO INTERNO Y APILE PARA RETIRO POSTERIOR. VOLUMEN MEDIDO EN BANCO.","M2",3150,null," Pesos   0 0/100 M.N",0]
["DOPI-013","DEMOLICIÓN POR CUALQUIER MEDIO DE VITROPISO, INCLUYE: DEMOLICION DEL MORTERO, HERRAMIENTA, MANO DE OBRA, ACARREO INTERNO Y APILE PARA SU POSTERIOR  RETIRO.","M2",598.5,null," Pesos   0 0/100 M.N",0]
["DOPI-014","DEMOLICIÓN POR CUALQUIER MEDIO DE AZULEJO EN MURO, INCLUYE: DEMOLICION DEL MORTERO, HERRAMIENTA, MANO DE OBRA, ACARREO INTERNO Y APILE PARA SU POSTERIOR  RETIRO.","M2",157.5,null," Pesos   0 0/100 M.N",0]
["DOPI-015","DEMOLICIÓN DE JARDINERA EN EXPLANADA DE MERCADO DE FORMA IRREGULAR CON MUROS DE 10 CM DE ANCHO Y 70 CM DE ALTURA A MANO Y/O EQUIPO MECANICO LIGERO, INCLUYE: HERRAMIENTA, MANO DE OBRA, ACARREO INTERNO Y APILE PARA RETIRO POSTERIOR. VOLUMEN MEDIDO EN BANCO.","M3",21,null," Pesos   0 0/100 M.N",0]
["DOPI-016","DEMOLICIÓN DE CONCRETO SIMPLE EN BANQUETAS, POR MEDIOS MECÁNICOS, INCLUYE: ACARREO DEL MATERIAL A BANCO DE OBRA PARA SU POSTERIOR RETIRO Y LIMPIEZA DEL ÁREA DE LOS TRABAJOS, MANO DE OBRA, EQUIPO Y HERRAMIENTA.","M2",157.5,null," Pesos   0 0/100 M.N",0]
["DOPI-017","DESMONTAJE DE HERRERIA EN GENERAL EMPOTRADA O ANCLADA CON RECUPERACION, INCLUYE: DEMOLICION O RASPADO DE MORTERO O CONCRETO, ACOPIO DEL MATERIAL PARA SU RETIRO POSTERIOR, MANO DE OBRA Y ANDAMIOS.","M2",157.5,null," Pesos   0 0/100 M.N",0]
["DOPI-018","CARGA Y ACARREO EN CARRETILLA A 20.00 MT. DE DISTANCIA DE MATERIAL PRODUCTO DE LA EXCAVACION Y/O DEMOLICION.  INCLUYE: HERRAMIENTA MENOR Y MANO DE OBRA. VOLUMEN MEDIDO EN SECCIONES.","M3",105,null," Pesos   0 0/100 M.N",0]
["DOPI-019","CARGA MECÁNICA Y ACARREO EN CAMIÓN 1 ER. KILOMETRO, DE MATERIAL PRODUCTO DE EXCAVACIÓN, DEMOLICIÓN Y/O ESCOMBROS, INCLUYE: REGALÍAS AL BANCO DE TIRO, MANO DE OBRA, EQUIPO Y HERRAMIENTA.","M3",325.5,null," Pesos   0 0/100 M.N",0]
["DOPI-020","ACARREO EN CAMIÓN KILÓMETROS SUBSECUENTES DE MATERIAL PRODUCTO DE EXCAVACIÓN, DEMOLICIÓN Y/O ESCOMBROS A TIRADERO AUTORIZADO POR SUPERVISIÓN, INCLUYE: MANO DE OBRA, EQUIPO Y HERRAMIENTA.","M3/KM",8463,null," Pesos   0 0/100 M.N",0]
["A.2","PISOS Y BAÑOS",0,0,null,null,{"$f":"SUM(G41:G55)","v":0}]
["DOPI-021","TRAZO Y NIVELACIÓN CON EQUIPO TOPOGRÁFICO DEL TERRENO ESTABLECIENDO EJES Y REFERENCIAS Y BANCOS DE NIVEL, INCLUYE: CRUCETAS, ESTACAS, HILOS, MARCAS Y TRAZOS CON CALHIDRA, MANO DE OBRA, EQUIPO Y HERRAMIENTA.","M2",3150,null,{"$f":"Enletras(E41)","v":" Pesos   0 0/100 M.N"},{"$f":"ROUND((E41*D41),2)","v":0}]
["DOPI-022","SUMINISTRO Y ELABORACIÓN DE PISO DE CONCRETO F’C=200 KG/CM2 ESTAMPADO CON COLOR INTEGRADO A 4% T.M.A. ¾, BOMBEABLE, REFORZADO CON MALLA ELECTRSOLDADA 6X6-10/10 DE 8 CM DE ESPESOR, SELLADO CON BARNIZ MATE O BRILLOSO INCLUYE: CORTES, JUNTA ELASTOMERICA, MATERIAL, MANO DE OBRA, HERRAMIENTA Y CIMBRA.","M2",3150,null," Pesos   0 0/100 M.N",0]
["DOPI-023","SUMINISTRO E INSTALACION DE PISO PORCELÁNICO TURIN DALTILE 60 X 60 CM ACABADO RECTIFICADO PULIDO BRILLANTE, INCLUYE: MATERIALES, MANO DE OBRA, ADHESIVOS, PREPARACION DEL AREA,  JUNTEO Y TODO LO NECESARIO PARA SU CORRECTA EJECUCION.","M2",598.5,null," Pesos   0 0/100 M.N",0]
["DOPI-024","SUMINISTRO E INSTALACION DE ZOCLO PORCELÁNICO TURIN DALTILE 10 X 60 CM ACABADO RECTIFICADO PULIDO BRILLANTE, INCLUYE: MATERIALES, MANO DE OBRA, ADHESIVOS, PREPARACION DEL AREA,  JUNTEO Y TODO LO NECESARIO PARA SU CORRECTA EJECUCION.","M",262.5,null," Pesos   0 0/100 M.N",0]
["DOPI-025","SUMINISTRO Y COLOCACION DE AZULEJO YORK BLANCO ACABADO MATE ANTIDERRAPANTE MEDIDAS APROX DE 10 CM X 20 CM, INCLUYE: MATERIALES, HERRAMIENTA Y MANO DE OBRA.","M2",126,null," Pesos   0 0/100 M.N",0]
["DOPI-026","SUMINISTRO Y COLOCACIÓN DE DESPACHADOR DE JABON LIQUIDO MODELO: 92537. INCLUYE: MATERIAL, ACCESORIOS, MANO DE OBRA, EQUIPO Y HERRAMIENTA.","PZA",2,null," Pesos   0 0/100 M.N",0]
["DOPI-027","SUMINISTRO  Y  COLOCACIÓN DE LLAVE MEZCLADORA MONOMANDO, ECONOMIZADORA, MODELO TV-105, MARCA HELVEX O SIMILAR, LATON O SIMILAR, INCLUYE: PAQUETE DE INSTALACION DE LAVABO COFLEX, ACCESORIOS, CONEXIONES, MATERIALES, MANO DE OBRA, EQUIPO, HERRAMIENTA Y TODO LO NECESARIO PARA SU CORRECTA EJECUCION.","PZA",2,null," Pesos   0 0/100 M.N",0]
["DOPI-028","SUMINISTRO E INSTALACIÓN DE W.C. RODANO HELVEX, ALARGADO CON TRAMPA EXPUESTA Y DESCARGA DE 4.8 LITROS, COLOR BLANCO, INCLUYE: ASIENTO PARA BAÑO HELVEX AT-2, JUNTA DE CERA, LLAVE DE CONTROL, MANGUERA DE ALIMENTACIÓN, PIJAS, COLOCACIÓN, MATERIALES, HERRAMIENTA Y MANO DE OBRA.","PZA",5,null," Pesos   0 0/100 M.N",0]
["DOPI-029","SUMINISTRO Y COLOCACIÓN DE MINGITORIO ECOLÓGICO COLOR BLANCO MARCA MAKECH MODELO MTA – 3004 O SIMILAR,  INCLUYE: MATERIALES, MANO DE OBRA, EQUIPO, HERRAJES DE FIJACIÓN Y HERRAMIENTA.","PZA",1,null," Pesos   0 0/100 M.N",0]
["DOPI-030","SUMINISTRO E INSTALACION DE DOSIFICADOR DE JABON ESPUMA/FOAM CON DEPOSITO RELLENABLE DE 800ML CODIGO: AC45000. INCLUYE: MATERIAL, HERRAMIENTA, EQUIPO Y MANO DE OBRA,","PZA",2,null," Pesos   0 0/100 M.N",0]
["DOPI-031","SUMINISTRO E INSTALACION DE DISPENSADOR DE PAPEL HIGIENICO EN ROLLO CONTINUO- KIMBERLY CLARCK, INCLUYE: ANCLAJE, MANO DE OBRA, ACCESORIOS, EQUIPO Y HERRAMIENTA.","PZA",5,null," Pesos   0 0/100 M.N",0]
["DOPI-032","SUMINISTRO Y COLOCACIÓN DE ESPEJO FLOTADO RECTANGULAR BISELADO DE 6 MM INCLINACIÓN DE 10°, INCLUYE: MATERIALES MENORES Y DE CONSUMO,  ELEMENTOS DE FIJACION, MARCO DE ALUMINIO DE 2\", VINILO, PIJAS, HERRAMIENTAS, LIMPIEZA Y MANO DE OBRA ESPECIALIZADA.","M2",3.4649999999999999,null," Pesos   0 0/100 M.N",0]
["DOPI-033","BARRA PARA EMPOTRAR LAVABOS DE 0.60 MTS. DE ANCHO Y 0.10 MTS. DE ESPESOR CON CONCRETO DE F'c=150 KG/CM2 ARMADA CON VARILLA DE 3/8\" A CADA 15 CM. AMBOS SENTIDOS ACABADO CON AZULEJO MCA. INTERCERAMIC DE 20 X 20 CM, MODELO ASTRATTO BLANCO ANTIBACTERIAL PEGADO CON CEMENTO CREST O SIMILAR. INCLUYE: SUMINISTRO Y ELABORACION, TRAZO, NIVELACION, CIMBRA, DESCIMBRA, MATERIAL Y MANO DE OBRA.","M",3.1500000000000004,null," Pesos   0 0/100 M.N",0]
["DOPI-034","SUMINISTRO E INSTALACIÓN DE LAVABO OVALIN DE SUBMONTAR, DE PORCELANA, COLOR BLANCO MODELO BARBADOS DE 60 X 40 X 10 CM DE ALTURA, INCLUYE: MANO DE OBRA, COLOCACIÓN,CESPOL DE LATON ACABADO CROMADO, EQUIPO, HERRAMIENTA Y ACARREOS. EN CUALQUIER NIVEL.","PZA",4,null," Pesos   0 0/100 M.N",0]
["DOPI-035","SUMINISTRO Y COLOCACIÓN DE MAMPARAS MARCA MODUMEX LÍNEA LEEDER M1 MODELO ESTÁNDAR ACABADO SÓLIDO FENÓLICO 12.7 MM COLOR PLATINUM DROPS O SIMILAR, INCLUYE: MATERIALES, MANO DE OBRA, EQUIPO, HERRAJES DE FIJACIÓN Y HERRAMIENTA.","M2",28.35,null," Pesos   0 0/100 M.N",0]
["A.3","CIMENTACIONES ANCLAJES ESTRUCTURAL",0,0,null,null,{"$f":"SUM(G57:G65)","v":0}]
["DOPI-036","CORTE CON DISCO DE DIAMANTE HASTA 1/3 DE ESPESOR DE LA LOSA Y HASTA 3 MM DE ANCHO, INCLUYE: EQUIPO, PREPARACIONES Y MANO DE OBRA.","M",210,null,{"$f":"Enletras(E57)","v":" Pesos   0 0/100 M.N"},{"$f":"ROUND((E57*D57),2)","v":0}]
["DOPI-037","CIMENTACIÓN A BASE DE SUELO-CEMENTO, A BASE DE MATERIAL DE BANCO, EN PROPORCIÓN DE 1:10, COMPACTADO CON COMPACTADOR DE IMPACTO EN CAPAS NO MAYORES DE 20 CM AL 95% DE SU P.V.S.M, PRUEBA AASHTO ESTÁNDAR, INCLUYE: HERRAMIENTA, SUMINISTRO DE AGUA PARA LOGRAR HUMEDAD ÓPTIMA, MEZCLADO, TENDIDO, EQUIPO, PRUEBAS DE COMPACTACIÓN, EQUIPO Y MANO DE OBRA. (MEDIDO EN TERRENO NATURAL POR SECCIÓN SEGÚN PROYECTOS.) TRABAJOS EN ESPACIO REDUCIDO.","M3",4.83,null," Pesos   0 0/100 M.N",0]
["DOPI-038","PLANTILLA DE 10 CM DE ESPESOR DE CONCRETO HECHO EN OBRA DE F´C=150 KG/CM2, INCLUYE: PREPARACIÓN DE LA SUPERFICIE, NIVELACIÓN, MUESTREADO, COLADO, MANO DE OBRA, EQUIPO Y HERRAMIENTA.","M2",11.52,null," Pesos   0 0/100 M.N",0]
["DOPI-039","SUMINISTRO Y COLOCACIÓN DE CONCRETO HECHO EN OBRA F'C=250 KG/CM2 RESISTENCIA NORMAL, INCLUYE: MATERIALES, COLADO, VIBRADO, DESCIMBRA, CURADO,  MANO DE OBRA, EQUIPO Y HERRAMIENTA.","M3",10.5,null," Pesos   0 0/100 M.N",0]
["DOPI-040","SUMINISTRO E INSTALACIÓN DE ACERO DE REFUERZO CON VARILLA CORRUGADA (GRADO 42 ASTM A-615), DE LIMITE DE AFLUENCIA MINIMA 4200KG/CM2  DE DISTINTOS DIAMETROS (SEGÚN DISEÑO ESTRUCTURAL DEL PROYECTO). INCLUYE: MATERIAL, MANO DE OBRA, EQUIPO, HERRAMIENTA, CORTES, TRASLAPES, HABILITADO, AMARRES Y ACARREO HASTA EL LUGAR.","KG",525,null," Pesos   0 0/100 M.N",0]
["DOPI-041","SUMINISTRO Y COLOCACION DE GROUT MORTERO AUTONIVELANTE PARA ANCLAJES, RELLENOS Y NIVELACIÓN. INCLUYE: MATERIALES,  MANO DE OBRA Y HERRAMIENTAS.","M3",4.725E-2,null," Pesos   0 0/100 M.N",0]
["DOPI-042","ANCLAS DE 5/8\" X 1.00 MTS. ROSCADAS ( 4 PIEZAS ) CON TUERCAS Y RONDANAS. INCLUYE: SUMINISTRO Y COLOCACION, ESTRIBOS DE 3/8\" A/C 15 CMS. MATERIAL Y MANO DE OBRA.","PZA",19,null," Pesos   0 0/100 M.N",0]
["DOPI-043","SUMINISTRO Y COLOCACION DE PLACAS AHOGADAS EN DALAS Y CASTILLOS DE 10X10 CM X 3/16\" CON ANCLA SOLDADA DE 3/8\" DE 14 CM, 9 CM DE LARGO + 5 CM DE PATA, INCLUYE: TRAZO, NIVELACION, AMARRE, MATERIALES, MANO DE OBRA, EQUIPO Y HERRAMIENTA.","PZA",19,null," Pesos   0 0/100 M.N",0]
["DOPI-044","FORJADO DE DADO DE 25 X 25 CMS Y 5 CMS DE ALTO CON MORTERO CEMENTO-ARENA DE RIO PROP. 1:4, PARA CUBRIR ANCLAS DE COLUMNAS, INCLUYE: CIMBRA, COLADO, TERMINADO PULIDO, MANO DE OBRA,  MATERIALES, EQUIPO Y  HERRAMIENTA.","PZA",19,null," Pesos   0 0/100 M.N",0]
["A.4","ALBANILERIAS Y PINTURA",null,0,null,null,{"$f":"SUM(G67:G75)","v":0}]
["DOPI-045","APLANADO DE 2.50 CM DE ESPESOR EN MURO CON MORTERO CEMENTO-ARENA 1:3, ACABADO PULIDO O APALILLADO, INCLUYE: MATERIALES, ACARREOS, DESPERDICIOS, MANO DE OBRA, ANDAMIOS, PLOMEADO, NIVELADO, REGLEADO, RECORTES, MANO DE OBRA, EQUIPO Y HERRAMIENTA.","M2",525,null,{"$f":"Enletras(E67)","v":" Pesos   0 0/100 M.N"},{"$f":"ROUND((E67*D67),2)","v":0}]
["DOPI-046","BOQUILLA DE 15 A 20 CM DE ANCHO, CON MORTERO CEMENTO ARENA PROPORCIÓN 1:3, TERMINADO PULIDO, EN APERTURA DE VANOS DE PUERTAS Y VENTANAS, INCLUYE: SUMINISTRO, PULIDO, MANO DE OBRA, HERRAMIENTA Y EQUIPO.","M",157.5,null," Pesos   0 0/100 M.N",0]
["DOPI-047","MURO DE BLOCK DE JALCRETO  A TEZON 11X14X28 CM. HASTA  3 HILAS ASENTADO CON MORTERO CEMENTO-ARENA DE RIO EN PROPORCION 1:3. INCLUYE: MATERIALES, MANO DE OBRA Y HERRAMIENTA.","M",157.5,null," Pesos   0 0/100 M.N",0]
["DOPI-048","ANCLAJE DE CASTILLO EN CIMENTACIÓN  DE 0.40X0.40X0.40 MTS. CON CONCRETO F´c=150KG/CM2 H.O. INCLUYE: CIMBRA, MATERIALES, MANO DE OBRA,  HERRAMIENTA Y EQUIPO.","PZA",63,null," Pesos   0 0/100 M.N",0]
["DOPI-049","MURO DE SOGA CON BOCK DE JALCRETO  11X14X28 CM. DE 14 CM. DE ESPESOR ASENTADO CON MORTERO CEMENTO ARENA PROP. 1:4. INCLUYE: SUMINISTRO Y ELABORACION, ACARREOS,  ANDAMIOS, EQUIPO, MATERIALES, HERRAMIENTA Y MANO DE OBRA.","M2",185.85,null," Pesos   0 0/100 M.N",0]
["DOPI-050","DALA Y CERRAMIENTOS  DE  SECCIÓN 15X20 CM. CON CONCRETO F'C=150 KG./CM2  Y 4 VARILLAS DE 3/8\", ESTRIBOS DE ALAMBRON DE 1/4\" @20CM. INCLUYE: CIMBRADO,  DESCIMBRADO, MATERIALES , MANO DE OBRA, HERRAMIENTA Y EQUIPO.","M",68.25,null," Pesos   0 0/100 M.N",0]
["DOPI-051","CASTILLOS  DE  SECCIÓN 15X20  CM.CON CONCRETO F'C=150 KG. CM2 Y 4 VARILLAS DE 3/8\", ESTRIBOS DE ALAMBRON DE 1/4\" @20CM. HASTA UNA ALTURA DE 3.50 MTS, INCLUYE: ANDAMIOS, CIMBRADO, VIBRADO, CIMBRADO,  MATERIALES,  MANO DE OBRA, HERRAMIENTA Y EQUIPO.","M",21,null," Pesos   0 0/100 M.N",0]
["DOPI-052","FILETES Y BOLEADOS, HECHOS CON MORTERO CEMENTO-ARENA EN PROPORCIÓN 1:3, TANTO INCLINADOS COMO VERTICALES A TIRO DE HILO Y ESCUADRA,  INCLUYE: DESPERDICIOS, ANDAMIOS Y ACARREO DE MATERIALES AL SITIO DE SU UTILIZACIÓN, A CUALQUIER NIVEL.","M",52.5,null," Pesos   0 0/100 M.N",0]
["DOPI-053","SUMINISTRO Y APLICACIÓN DE PINTURA VINÍLICA COLOR BLANCO LÍNEA VINIMEX PREMIUM DE COMEX O SIMILAR A DOS MANOS, EN CUALQUIER COLOR, LIMPIANDO Y PREPARANDO LA SUPERFICIE CON SELLADOR, INCLUYE: MATERIALES, ANDAMIOS, MANO DE OBRA, EQUIPO Y HERRAMIENTA.","M2",840,null," Pesos   0 0/100 M.N",0]
["A.5","ESTRUCTURA Y CUBIERTAS",null,0,null,null,{"$f":"SUM(G77:G102)","v":0}]
["DOPI-054","SUMINISTRO, HABILITADO E INSTALACIÓN  DE ACERO ESTRUCTURAL  (ASTM 572-50 ) PARA SOPORTE DE CUBIERTA. INCLUYE:  NIVELACIÓN, ELEMENTOS DE FIJACIÓN, CORTES, SOLDADURA, ACARREOS, DESPERDICIO, MATERIAL, MANO DE OBRA, EQUIPO Y HERRAMIENTA.","KG",20393.100000000002,null,{"$f":"Enletras(E77)","v":" Pesos   0 0/100 M.N"},{"$f":"ROUND((E77*D77),2)","v":0}]
["DOPI-055","SUMINISTRO E INSTALACIÓN DE LAMINA PERFORADA DE ACERO AL CARBON CALIBRE 18.  INCLUYE:  MATERIALES, ACARREOS, CORTES, ELEVACIÓN, NIVELACIÓN, DESPERDICIOS, HABILITADO, SOLDADURA, CORTES, ANDAMIOS, MANO DE OBRA, EQUIPO Y HERRAMIENTA.","M2 ",63,null," Pesos   0 0/100 M.N",0]
["DOPI-056","SUMINISTRO E INSTALACIÓN DE LAMINA LISA ROLADA EN FRIO  CALIBRE 16. (PERFILES COMERIALES ASTM A366). INCLUYE:  MATERIALES, ACARREOS, CORTES, ELEVACIÓN, NIVELACIÓN, DESPERDICIOS, HABILITADO, SOLDADURA, CORTES, ANDAMIOS, MANO DE OBRA, EQUIPO Y HERRAMIENTA.","M2",63,null," Pesos   0 0/100 M.N",0]
["DOPI-057","SUMINISTRO Y APLICACIÓN DE PINTURA ESMALTE EPOXICO ANTICORROSIVO DE ALTO PODER PARA PROTECCION DE ESTRUCTURAS MÉTALICAS COMEX O SIMILAR, COLOR BLANCO, EN ESTRUCTURAS METÁLICAS, INCLUYE: APLICACIÓN DE RECUBRIMIENTO A 4 MILÉSIMAS DE ESPESOR, MATERIALES, MANO DE OBRA, EQUIPO Y HERRAMIENTA.","KG",20393.100000000002,null," Pesos   0 0/100 M.N",0]
["DOPI-058","SUMINISTRO E INSTALACIÓN DE LÁMINA MULTYPANEL COLOR BLANCO (TECHO) DE  1 1/2\" CAL. 26/26, EN CUBIERTAS, INCLUYE: MATERIALES, ACARREOS, CORTES, DESPERDICIOS, ELEVACIONES HASTA UNA ALTURA DE 18 MT, FIJACIÓN, SELLADO,  MANO DE OBRA, EQUIPO Y HERRAMIENTA.","M2",1038.45,null," Pesos   0 0/100 M.N",0]
["DOPI-059","SUMINISTRO E INSTALACIÓN DE MOLDURA CANALÓN DE LÁMINA PINTRO DE CAL. 18  CON UN DESARROLLO DE HASTA 1.00 M, CON REFUERZOS DE ANGULO DE FIERRO, PARA CONDUCCIÓN DE AGUA PLUVIAL DE CUBIERTAS A BAJANTES, CUALQUIER ALTURA, INCLUYE: MATERIALES, ACARREOS, CORTES, DESPERDICIOS, ANDAMIOS, ELEVACIONES, FIJACIÓN, MANO DE OBRA, EQUIPO Y HERRAMIENTA.","M",157.5,null," Pesos   0 0/100 M.N",0]
["DOPI-060","SUMINISTRO E INSTALACIÓN DE MOLDURA GOTERÓN (CUBIERTA-PRETIL) DE LÁMINA PINTRO COLOR BLANCO DE CAL. 24 CON UN DESARROLLO DE HASTA 0.61 CM, (24\") CON REFUERZOS DE ANGULO DE FIERRO, PARA CONDUCCIÓN DE AGUA PLUVIAL DE CUBIERTAS A BAJANTES, A UNA ALTURA DE 10 MT. INCLUYE: MATERIALES, ACARREOS, CORTES, DESPERDICIOS, ANDAMIOS, ELEVACIONES, FIJACIÓN, SELLADO, MANO DE OBRA, EQUIPO Y HERRAMIENTA.","M",157.5,null," Pesos   0 0/100 M.N",0]
["DOPI-061","SUMINISTRO E INSTALACIÓN DE MOLDURA TAPAGOTERO DE LÁMINA PINTRO COLOR BLANCO DE CAL. 24 CON UN DESARROLLO DE HASTA 0.40 CM, CON REFUERZOS DE ANGULO DE FIERRO, PARA CONDUCCIÓN DE AGUA PLUVIAL DE CUBIERTAS A BAJANTES, CUALQUIER ALTURA, INCLUYE: MATERIALES, ACARREOS, CORTES, DESPERDICIOS, ANDAMIOS, ELEVACIONES, FIJACIÓN, SELLADO, MANO DE OBRA, EQUIPO Y HERRAMIENTA.","M",157.5,null," Pesos   0 0/100 M.N",0]
["DOPI-062","SUMINISTRO Y COLOCACIÓN DE CASQUILLO, DE 6\" DE DIAMETRO, COLOR BLANCO/FDO. CAL. 22,COLOCADA A UNA ALTURA DE HASTA 7 MTS,  INCLUYE: ANDAMIOS, MATERIALES, HERRAMIENTA, EQUIPO, MANO DE OBRA, Y LO NECESARIO PARA SU EJECUCIÓN.","Pza",15,null," Pesos   0 0/100 M.N",0]
["DOPI-063","SUMINISTRO Y COLOCACION DE SELLADO CON SIKAFLEX ENTRE EL MULTYPANEL Y EL CANALON DE 1.5  CMS DE ANCHO A TODO LO LARGO, INCLUYE: ANDAMIOS, MATERIALES, ACARREOS,  DESPERDICIOS, ELEVACIONES, FIJACION, MANO DE OBRA, EQUIPO Y HERRAMIENTA.","M",367.5,null," Pesos   0 0/100 M.N",0]
["DOPI-064","SUMINISTRO E INSTALACION DE LAMINA ACRILICA T-952 GLAMET 1.5\" BCO/LECH EN CUBIERTA, INCLUYE: MATERIALES, ACARREOS, CORTES, ELEVACION, FIJACION, ANDAMIOS, MANO DE OBRA, EQUIPO Y HERRAMIENTA.","M2",294,null," Pesos   0 0/100 M.N",0]
["DOPI-065","SUMINISTRO E INSTALACION DE TAPAS DE BAJANTES DE PVC  CON LAMINA PINTRO CAL 24 CON UN DESARROLLO DE 48 CMS TIPO ANGULO X 3.05 M DE ALTO, INCLUYE: ANDAMIOS, MATERIALES, ACARREOS, CORTES, DESPERDICIOS, ELEVACIONES, FIJACION, MANO DE OBRA, EQUIPO Y HERRAMIENTA.","PZA",13,null," Pesos   0 0/100 M.N",0]
["DOPI-066","SUMINISTRO Y COLOCACION DE POLICARBONATO DE ALTA TECNOLOGIA CON PROTECCION A RAYOS UV DE 6 MM, EN VENTANALES DE AZOTEA, DE DIFERENTES TAMAÑOS, HASTA UNA ALTURA DE 8.0 M, CUALQUIER COLOR, INCLUYE: PREPARACION DEL AREA DE TRABAJO, ELEMENTOS DE FIJACION Y ANCLAJE, SELLO CON MATERIAL ELASTICO SIKAFLEX 1A O SIMILAR , CORTES, DESPERDICIOS, ACARREO Y ELEVACION, ANDAMIOS, MATERIALES, MANO DE OBRA ESPECIALIZADA, EQUIPO Y HERRAMIENTA.","M2",210,null," Pesos   0 0/100 M.N",0]
["DOPI-067","CORTE CON DISCO DE DIAMANTE HASTA 1/3 DE ESPESOR DE LA LOSA Y HASTA 3 MM DE ANCHO, INCLUYE: EQUIPO, PREPARACIONES Y MANO DE OBRA.","M",47.25,null," Pesos   0 0/100 M.N",0]
["DOPI-068","DEMOLICIÓN DE CONCRETO SIMPLE EN BANQUETAS, POR MEDIOS MANUALES, INCLUYE: ACARREO DEL MATERIAL A BANCO DE OBRA PARA SU POSTERIOR RETIRO Y LIMPIEZA DEL ÁREA DE LOS TRABAJOS, MANO DE OBRA, EQUIPO Y HERRAMIENTA.","M3",1.1550000000000002,null," Pesos   0 0/100 M.N",0]
["DOPI-069","EXCAVACIÓN POR MEDIOS MANUALES DE 0.00 A -2.00 M, AUTORIZADA EN SITIO POR SUPERVISIÓN, EN MATERIAL TIPO II,  INCLUYE: RETIRO DEL MATERIAL A BANCO DE OBRA INDICADO POR SUPERVISIÓN, ABUNDAMIENTO, MANO DE OBRA, EQUIPO Y HERRAMIENTA.","M3",16.8,null," Pesos   0 0/100 M.N",0]
["DOPI-070","CARGA Y ACARREO EN CARRETILLA A 20.00 MT. DE DISTANCIA DE MATERIAL PRODUCTO DE LA EXCAVACION Y/O DEMOLICION.  INCLUYE: HERRAMIENTA MENOR Y MANO DE OBRA. VOLUMEN MEDIDO EN SECCIONES.","M3",18.900000000000002,null," Pesos   0 0/100 M.N",0]
["DOPI-071","CARGA MECANICA Y RETIRO DE ESCOMBRO A FUERA DE LA OBRA EN CAMION DE VOLTEO AL LUGAR INDICADO POR SUPERVISION, INCLUYE: MANO DE OBRA, EQUIPO Y HERRAMIENTA.","M3",18.900000000000002,null," Pesos   0 0/100 M.N",0]
["DOPI-072","CIMENTACIÓN A BASE DE SUELO-CEMENTO, A BASE DE MATERIAL DE BANCO, EN PROPORCIÓN DE 1:10, COMPACTADO CON COMPACTADOR DE IMPACTO EN CAPAS NO MAYORES DE 20 CM AL 95% DE SU P.V.S.M, PRUEBA AASHTO ESTÁNDAR, INCLUYE: HERRAMIENTA, SUMINISTRO DE AGUA PARA LOGRAR HUMEDAD ÓPTIMA, MEZCLADO, TENDIDO, EQUIPO, PRUEBAS DE COMPACTACIÓN, EQUIPO Y MANO DE OBRA. (MEDIDO EN TERRENO NATURAL POR SECCIÓN SEGÚN PROYECTOS.) TRABAJOS EN ESPACIO REDUCIDO.","M3",11.340000000000002,null," Pesos   0 0/100 M.N",0]
["DOPI-073","PLANTILLA DE 10 CM DE ESPESOR DE CONCRETO HECHO EN OBRA DE F´C=150 KG/CM2, INCLUYE: PREPARACIÓN DE LA SUPERFICIE, NIVELACIÓN, MUESTREADO, COLADO, MANO DE OBRA, EQUIPO Y HERRAMIENTA.","M2",28.35,null," Pesos   0 0/100 M.N",0]
["DOPI-074","SUMINISTRO Y COLOCACIÓN DE CONCRETO HECHO EN OBRA F'C=250 KG/CM2 RESISTENCIA NORMAL, INCLUYE: MATERIALES, COLADO, VIBRADO, DESCIMBRA, CURADO,  MANO DE OBRA, EQUIPO Y HERRAMIENTA.","M3",14.700000000000001,null," Pesos   0 0/100 M.N",0]
["DOPI-075","SUMINISTRO E INSTALACIÓN DE ACERO DE REFUERZO CON VARILLA CORRUGADA (GRADO 42 ASTM A-615), DE LIMITE DE AFLUENCIA MINIMA 4200KG/CM2  DE DISTINTOS DIAMETROS (SEGÚN DISEÑO ESTRUCTURAL DEL PROYECTO). INCLUYE: MATERIAL, MANO DE OBRA, EQUIPO, HERRAMIENTA, CORTES, TRASLAPES, HABILITADO, AMARRES Y ACARREO HASTA EL LUGAR.","KG",1260,null," Pesos   0 0/100 M.N",0]
["DOPI-076","RELLENO CON MATERIAL PRODUCTO DE LA EXCAVACIÓN COMPACTADO CON PIZÓN EN CAPAS NO MAYORES DE 20 CMS. INCLUYE: ACARREOS, EQUIPO, HERRAMIENTA Y MANO DE OBRA,","M3",21,null," Pesos   0 0/100 M.N",0]
["DOPI-077","SUMINISTRO Y COLOCACION DE GROUT MORTERO AUTONIVELANTE PARA ANCLAJES, RELLENOS Y NIVELACIÓN. INCLUYE: MATERIALES,  MANO DE OBRA Y HERRAMIENTAS.","M3",3.15E-2,null," Pesos   0 0/100 M.N",0]
["DOPI-078","ANCLAS DE 5/8\" X 1.00 MTS. ROSCADAS ( 4 PIEZAS ) CON TUERCAS Y RONDANAS. INCLUYE: SUMINISTRO Y COLOCACION, ESTRIBOS DE 3/8\" A/C 15 CMS. MATERIAL Y MANO DE OBRA.","PZA",13,null," Pesos   0 0/100 M.N",0]
["DOPI-079","CIMBRA EN DADOS DE CIMENTACIÓN, CON BLOCK DE JALCRETO 11X14X28 CMS ASENTADO CON MORTERO CEMENTO - ARENA DE RIO, PROPORCION 1:4 ACABADO COMÚN, INCLUYE: SUMINISTRO DE MATERIALES, MANO DE OBRA, Y HERRAMIENTA.","M2",39.9,null," Pesos   0 0/100 M.N",0]
["A.6","ELECTRICIDAD",null,0,null,null,{"$f":"SUM(G104:G120)","v":0}]
["DOPI-080","SALIDA ELÉCTRICA PARA LÁMPARA CON TUBO CONDUIT DIÁMETRO HASTA 3/4\" PARED GRUESA, 2HILOS CABLE CALIBRE 12, CON UN DESARROLLO DE HASTA 5 M. INCLUYE: CAJA, PLACA, REGISTROS, ACCESORIOS, ANDAMIOS, MATERIALES, EQUIPO, HERRAMIENTAS Y MANO DE OBRA.","SAL ",58,null,{"$f":"Enletras(E104)","v":" Pesos   0 0/100 M.N"},{"$f":"ROUND((E104*D104),2)","v":0}]
["DOPI-081","SALIDA ELECTRICA OCULTA PARA APAGADORES Y LUMINARIAS, CON TUBERIA CONDUIT DE 1\", 3 HILOS DE CABLE CAL. 10, CAJA CHALUPA GALV., CINTA AISLANTE, HASTA 7.00 MT. DE LONGITUD, INCLUYE: MANO DE OBRA, ACARREOS, DESPERDICIOS, HERRAMIENTA Y TODO LO NECASARIO PARA SU CORRECTA EJECUCION.","SAL ",47,null," Pesos   0 0/100 M.N",0]
["DOPI-082","SALIDA ELECTRICA PARA CONTACTO DUPLEX POLARIZADO Y/O APAGADOR SENCILLO, OCULTA, CON TUBERIA CONDUIT GALVANIZADA PARED DELGADA DE HASTA 1\", CABLE VINANEL THW-LS 600 V. A 75° C, 90° C, MARCA CONDUCTORES MONTERREY O SIMILAR (VIAKON-PROTOCOLIZADO), CABLE VINANEL 21 THW-LS 600 V. A 75° C, 90° C, MARCA CONDUMEX (CONDUMEX PROTOCOLIZADO), CALIBRE 10 Y 12, CAJAS DE REGISTRO CUADRADAS, CHALUPAS Y TAPAS DE PVC REFORZADO, CONTACTO Y APAGADOR QUINZIÑO O SIMILAR, TAPA DE ALUMINIO, INCLUYE: HERRAMIENTA, TRAZO, RANURAS, CONEXIÓN A TIERRA, ACCESORIOS, MATERIALES MENORES Y DE CONSUMO, PRUEBAS, DESPERDICIOS Y ACARREO DEL MATERIAL AL SITIO DE SU COLOCACIÓN, A CUALQUIER NIVEL, EQUIPO Y MANO DE OBRA.","SAL ",47,null," Pesos   0 0/100 M.N",0]
["DOPI-083","SALIDA  ELÉCTRICA  PARA ALIMENTACIÓN DE CENTRO DE CARGA  CON  TUBERIA CONDUIT PARED GRUESA DE  1 1/4\", 2 HILOS  CABLE CALIBRE 12 ,   CON UN DESARROLLO  DE HASTA 20 M. INCLUYE:   CAJA,  PLACA,   REGISTROS  Y ACCESORIOS, ANDAMIOS, MATERIALES, EQUIPO,  HERRAMIENTAS   Y MANO DE  OBRA.","SAL ",47,null," Pesos   0 0/100 M.N",0]
["DOPI-084","SUMINISTRO Y COLOCACIÓN DE CENTRO DE CARGA QO2 NEMA 1 TIPO SOBREPONER, INCLUYE: MATERIALES, MANO DE OBRA Y HERRAMIENTA","PZA",26,null," Pesos   0 0/100 M.N",0]
["DOPI-085","SUMINISTRO Y COLOCACIÓN DE CENTRO DE CARGA QO4 NEMA 1 TIPO SOBREPONER, INCLUYE: MATERIALES, MANO DE OBRA Y HERRAMIENTA","PZA",21,null," Pesos   0 0/100 M.N",0]
["DOPI-086","SUMINISTRO Y COLOCACIÓN DE INTERRUPTOR TERMOMAGNETICO DE 1X15-30 AMP. INCLUYE: MATERIAL, MANO DE OBRA Y HERRAMIENTA","PZA",94,null," Pesos   0 0/100 M.N",0]
["DOPI-087","SUMINISTRO  Y COLOCACION DE LAMPARA DE SOBREPONER SATINADA CUADRADA 18 WATTS MEDIDAS HASTA 55 CM X 55 CM, LUZ LED BLANCA O CÁLIDA, MATERIAL METAL, A CUALQUIER ALTURA Y/O NIVEL, CONECTADA  DE SALIDA DEL TECHO  A LAMPARA,INCLUYE: ANDAMIOS,   MATERIALES  DE FIJACION,   HERRAMIENTA   Y MANO DE OBRA.","PZA",21,null," Pesos   0 0/100 M.N",0]
["DOPI-088","SUMINISTRO E INSTALACIÓN  DE TUBERIA CONDUIT GALVANIZADA DE 3/4\" PARED GRUESA. INCLUYE: MATERIAL, MANO DE OBRA, HERRAMIENTA Y ANDAMIOS.","M",1312.5,null," Pesos   0 0/100 M.N",0]
["DOPI-089","SUMINISTRO E INSTALACIÓN DE  CABLE DE COBRE THW CAL. 8, INCLUYE: MATERIALES, MANO DE OBRA, EQUIPO Y HERRAMIENTA.","M",2352,null," Pesos   0 0/100 M.N",0]
["DOPI-090","SUMINISTRO E INSTALACIÓN DE CABLE MONOPOLAR DE COBRE AISLAMIENTO THHW, 600V, CAL. 12 AWG MARCA CONDUMEX O SIMILAR, INCLUYE: HERRAMIENTA, MATERIALES, CONEXIÓN,  PRUEBAS, EQUIPO Y MANO DE OBRA.","M",2257.5,null," Pesos   0 0/100 M.N",0]
["DOPI-091","SUMINISTRO Y COLOCACION DE REFLECTOR LED DE CUARZO SMD 30 W CARCASA NEGRA, LUZ FRIA, CONECTADO A SALIDA DEL PARED A REFLECTOR, INCLUYE: ANDAMIOS, MATERIALES DE FIJACION, EQUIPO, HERRAMIENTA Y MANO DE OBRA.","PZA",13,null," Pesos   0 0/100 M.N",0]
["DOPI-092","SUMINISTRO E INSTALACIÓN DE LUMINARIA TIPO ESTANCA DE SOBREPONER O SUSPENDER IMPERMEABLE AL POLVO Y LA HUMEDAD DE DOS LÁMPARAS LED T8 DE 18W, LA  WP2X18. INCLUYE: INSTALACIÓN QUE INCLUYE ACCESORIOS,  ANDAMIOS, ELEVACIONES, HERRAMIENTAS, LIMPIEZA MANO DE OBRA.","PZA",26,null," Pesos   0 0/100 M.N",0]
["DOPI-093","SUMINISTRO E INSTALACION DE MORDAZA DE ACERO GALVANIZADA DE 1 1/4\" X 3/8\" PARA COLGANTEAR LINEAS ELECTRICAS DE CONDUITS, INCLUYE: ANDAMIOS, MATERIALES, MANO DE OBRA, EQUIPO Y HERRAMIENTA.","PZA",210,null," Pesos   0 0/100 M.N",0]
["DOPI-094","SALIDA ELECTRICA PARA LAMPARAS, OCULTA, CON TUBERIA DE POLIDUCTO DE DIAMETRO DE HASTA 1\", CABLE VINANEL THW-LS 600 V. A 75° C, 90° C, MARCA CONDUCTORES MONTERREY O SIMILAR (VIAKON-PROTOCOLIZADO), CABLE VINANEL 21 THW-LS 600 V. A 75° C, 90° C, MARCA CONDUMEX (CONDUMEX PROTOCOLIZADO), CALIBRE 10 Y 12, CAJAS DE REGISTRO CUADRADAS, CHALUPAS Y TAPAS DE PVC REFORZADO, INCLUYE: HERRAMIENTA, TRAZO, RANURAS, CONEXIÓN A TIERRA, ACCESORIOS, MATERIALES MENORES Y DE CONSUMO, PRUEBAS, DESPERDICIOS Y ACARREO DEL MATERIAL AL SITIO DE SU COLOCACIÓN, A CUALQUIER NIVEL, EQUIPO Y MANO DE OBRA.","SAL ",47,null," Pesos   0 0/100 M.N",0]
["DOPI-095","POSTE LUMINOSO MODELO CUBIC MARCA CONSTRULITA DE TRES METROS DE ALTURA CON ILUMINACIÓN BILATERAL,FUENTE DE LUZ LED INTEGRADO, FLUJO LUMINOSO NOMINAL (LM) 6,700 EFICIENCIA NOMINAL (LM/W) >102 TCC 4000K IRC 70 ÁNGULO DE APERTURA 180° POTENCIA 66W TENSIÓN 127-277V~ FRECUENCIA DE OPERACIÓN 60 HZ TEMPERATURA DE OPERACIÓN -20 A 40 °C DRIVER INTEGRADO PROTOCOLO DE CONTROL ON/OFF VIDA PROMEDIO / TIPO DE VIDA 25,000 L70 MATERIAL DEL CUERPO ALUMINIO MATERIAL DE LA ÓPTICA / DIFUSOR PLÁSTICO INYECTADO ACABADO PINTURA ELECTROESTÁTICA COLOR GRIS IP 65 TIPO DE INSTALACIÓN SOBREPONER , INCLUYE: SUMINISTRO DE MATERIAL, MANO DE OBRA, ACCESORIOS DE INSTALACION, COMPLEMENTRIOS, SOPORTE, ANDAMIOS, HERRAMIENTA Y EQUIPO.","PZA",16,null," Pesos   0 0/100 M.N",0]
["DOPI-096","SUMINISTRO E INSTALACIÓN DE LUMINARIO DE EXTERIOR  EMPOTRADO EN PISO MODELO COIMBRA H-600/S 100-240 V ~ LAMINA DE ACERO, INCLUYE:  SUMINISTRO DE MATERIAL, MANO DE OBRA, ACCESORIOS DE INSTALACION, COMPLEMENTRIOS, SOPORTE, ANDAMIOS, HERRAMIENTA Y EQUIPO.","PZA",32,null," Pesos   0 0/100 M.N",0]
["A.7","FONTANERIA Y BAJANTES",null,0,null,null,{"$f":"SUM(G122:G123)","v":0}]
["DOPI-097","SUMINISTRO Y COLOCACIÓN DE TUBO DE PVC DE 8\" DE DIÁMETRO, INCLUYE: ACARREOS, MATERIALES, MANO DE OBRA, EQUIPO Y HERRAMIENTA","M",194.25,null,{"$f":"Enletras(E122)","v":" Pesos   0 0/100 M.N"},{"$f":"ROUND((E122*D122),2)","v":0}]
["DOPI-098","LIMPIEZA GRUESA DE OBRA DURANTE Y HASTA LA ENTREGA DE LA MISMA RETIRANDO MATERIAL DE ESCOMBRO O BASURA DE TRABAJOS RELACIONADOS. INCLUYE: MANO DE OBRA, HERRAMIENTA,  EQUIPO.","M2",735,null," Pesos   0 0/100 M.N",0]
["A.8","VENTANERIA",null,0,null,null,{"$f":"SUM(G125:G125)","v":0}]
["DOPI-099","SUMINISTRO Y COLOCACIÓN DE HERRERIA DE ALUMINIO BLANCO Y/O NATURAL CON PERFIL TIPO BOLSA DE 3\" Y CRISTAL CLARO DE 6 MM. INCLUYE: MATERIALES, MANO DE OBRA , EQUIPO, HERRAMIENTA Y SELLADO.","M2",120.96000000000001,null,{"$f":"Enletras(E125)","v":" Pesos   0 0/100 M.N"},{"$f":"ROUND((E125*D125),2)","v":0}]
["A.9","SEÑALETICA",null,0,null,null,{"$f":"SUM(G127:G134)","v":0}]
["DOPI-100","SUMINISTRO Y COLOCACIÓN DE GUÍA PODOTÁCTIL PUNTUAL Y/O AVANCE CON LÍNEAS, PREFABRICADA A BASE DE CONCRETO VIBROPRENSADO, RESISTENCIA DE F´C= 250 KG/CM2, MEDIDAS DE 40 X 40 X 4 CM, COLOR NEGRO 2500, CON SELLADOR ACRILICO LIBRE DE SOLVENTES MATE, JUNTA DE 2 A 3 MM DE ESPESOR COMO MÍNIMO DE SEPARACIÓN, ASENTADO CON MORTERO CEMENTO-ARENA 1:3 DE 2 CM MÍNIMO, INCLUYE: MATERIALES,  ACARREOS, ALMACENAJES, PREPARACIÓN DE LA SUPERFICIE, RECORTES, DESPERDICIOS, AJUSTES, EQUIPO, ASÍ COMO LA LIMPIEZA PARCIAL Y TOTAL AL INICIO Y FINAL DE ESTA ACTIVIDAD, MANO DE OBRA Y HERRAMIENTA.","PZA",53,null,{"$f":"Enletras(E127)","v":" Pesos   0 0/100 M.N"},{"$f":"ROUND((E127*D127),2)","v":0}]
["DOPI-101","SUMINISTRO Y COLOCACIÓN DE BOLARDO TIPO ZAPOPAN DE 6\" DE DIÁMETRO, FABRICADO EN TUBO GALVANIZADO CEDULA 30, DE 1.10 M DE DESARROLLO DE LONGITUD (0.75 M VISIBLE Y 0.35 M OCULTO), TAPA SUPERIOR DE PLACA 3/16\" C/ESCUDO EN ACERO INOXIDABLE, 1 CALCOMANIA COLOR ROJO REFLEJANTE GRADO DIAMANTE, 1 CALCOMANIA COLOR AMARILLO REFLEJANTE GRADO DIAMANTE CON ANCLAS SOLDADAS DE VARILLA DE 1/2\" POR 10CM PARA SU ANCLAJE, INCLUYE: HERRAMIENTA, DADO DE CONCRETO F´C= 150 KG/CM2 HECHO EN OBRA DE 40X40X40 CM,, ACARREOS, MATERIALES, EQUIPO Y MANO DE OBRA.","PZA",8,null," Pesos   0 0/100 M.N",0]
["DOPI-102","SUMINISTRO Y APLICACIÓN DE PINTURA DE TRÁFICO PESADO  PARA BALIZADO DE HASTA .20 CM DE ANCHO ( DIMENSIONES SEGUN DISEÑO ) EN CAJONES DE ESTACIONAMIENTO DE INCLUYE: TRAZO, DOS APLICACIONES COMO MINIMO, LIMPIANDO Y PREPARANDO LA SUPERFICIE, MATERIALES, ACARREOS, DESPERDICIOS, MANO DE OBRA, EQUIPO Y HERRAMIENTA, LIMPIEZA DURANTE Y AL FINALIZAR LA OBRA Y TODO LO NECESARIO PARA SU CORRECTA EJECUCIÓN","M2",32.550000000000004,null," Pesos   0 0/100 M.N",0]
["DOPI-103","SUMINISTRO Y APLICACIÓN DE PINTURA DE TRÁFICO PESADO  PARA BALIZADO  EN CAJONES DE DISCAPACITADOS, INCLUYE: TRAZO, LOGOTIPO, DOS APLICACIONES, LIMPIANDO Y PREPARANDO LA SUPERFICIE, MATERIALES, ACARREOS, DESPERDICIOS, MANO DE OBRA, EQUIPO, HERRAMIENTA Y TODO LO NECESARIO PARA SU CORRECTA EJECUCIÓN","M2",50.400000000000006,null," Pesos   0 0/100 M.N",0]
["DOPI-104","SUMINISTRO Y COLOCACIÓN DE SEÑALAMIENTO VERTICAL (RESTRICTIVO, INFORMATIVO O PREVENTIVO) DE 0.61X0.61 M EN LÁMINA GALVANIZADA CALIBRE 16, CON VINIL REFLEJANTE GRADO INGENIERÍA, INCLUYE: HERRAMIENTA, SUMINISTRO Y COLOCACIÓN, POSTE DE PTR GALVANIZADO DE 2\"X2\" Y CON ALTURA LIBRE DE MÍNIMO 2.50 M DESDE NIVEL DE SUELO A PARTE INFERIOR DEL TABLERO DE LA SEÑAL EN CALIBRE 12, DADO DE CONCRETO DE F¨C= 150 KG/CM2 HECHO EN OBRA DE 40X40X80 CM, MATERIALES, MANO DE OBRA, EQUIPO Y HERRAMIENTA.","PZA",6,null," Pesos   0 0/100 M.N",0]
["DOPI-105","ZONA PEATONAL PETATILLO CON LINEAS INTERCALADAS DE 40 CM. DE ANCHO EN PISO,  INCLUYE: PINTURA DE TRAFICO AMARILLA Y/O BLANCA, MICROESFERA A RAZON DE 800 GR. POR LITRO DE PINTURA, TRAZO, LIMPIEZA, MATERIALES Y MANO DE OBRA.","M2",100.80000000000001,null," Pesos   0 0/100 M.N",0]
["DOPI-106","SUMINISTRO E INSTALACIÓN DE TOPES PARA ESTACIONAMIENTO FABRICADO DE HULE  100% RECICLADO .55CM LARGO X .15CM DE ANCHO  X .10CM DE ALTO INCLUYE: MATERIALES, MANO DE OBRA, EQUIPO, HERRAMIENTA  Y TODO LO NECESARIO PARA SU CORRECTA EJECUCIÓN.","PZA",46,null," Pesos   0 0/100 M.N",0]
["DOPI-107","SUMINISTRO Y APLICACIÓN DE SEÑALETICA VERTICAL ( RUTA DE EVACUACION, IDENTIFICACION DE REAS, EXTINTORES, IDENTIFICACION DE NIVELES, ETC.) INCLUYE: SEÑALIZACIONES, COLOCACIÓN, MANO DE OBRA, EQUIPO Y HERRAMIENTA Y TODO LO NECESARIO PARA SU CORRECTA EJECUCIÓN NORMA S.C.T. N-CTR-K-1-07-001/00)","PZA",26,null," Pesos   0 0/100 M.N",0]
["A.10","CISTERNA",null,0,null,null,{"$f":"SUM(G136:G145)","v":0}]
["DOPI-108","TRAZO Y NIVELACIÓN CON EQUIPO TOPOGRÁFICO DEL TERRENO ESTABLECIENDO EJES Y REFERENCIAS Y BANCOS DE NIVEL, INCLUYE: CRUCETAS, ESTACAS, HILOS, MARCAS Y TRAZOS CON CALHIDRA, MANO DE OBRA, EQUIPO Y HERRAMIENTA.","M2",16.8,null,{"$f":"Enletras(E136)","v":" Pesos   0 0/100 M.N"},{"$f":"ROUND((E136*D136),2)","v":0}]
["DOPI-109","EXCAVACIÓN POR MEDIOS MECÁNICOS EN MATERIAL TIPO II, DE 0.00 A -2.00 M DE PROFUNDIDAD, INCLUYE: ACARREO DEL MATERIAL A BANCO DE OBRA PARA SU POSTERIOR RETIRO, MANO DE OBRA, EQUIPO Y HERRAMIENTA. (MEDIDO EN TERRENO NATURAL POR SECCIÓN).","M3",25.200000000000003,null," Pesos   0 0/100 M.N",0]
["DOPI-110","AFINE Y CONFORMACIÓN DE TERRENO NATURAL COMPACTADO EN CAPAS NO MAYORES DE 20 CM DE ESPESOR CON EQUIPO DE IMPACTO, COMPACTADO AL 90% ± 2 DE SU P.V.S.M., PRUEBA AASHTO ESTANDAR, CBR DEL 5% MÍNIMO, INCLUYE: CONFORMACIÓN, MANO DE OBRA, EQUIPO Y HERRAMIENTA.","M2",15.75,null," Pesos   0 0/100 M.N",0]
["DOPI-111","MURO TIPO TEZON DE BLOCK 11 X 14 X 28 CM ASENTADO CON MORTERO CEMENTO-ARENA 1:3, ACABADO COMÚN, INCLUYE: MATERIALES, MANO DE OBRA, EQUIPO Y HERRAMIENTA.","M2",31.5,null," Pesos   0 0/100 M.N",0]
["DOPI-112","SUMINISTRO E INSTALACIÓN DE ACERO DE REFUERZO CON VARILLA CORRUGADA (GRADO 42 ASTM A-615), DE LIMITE DE AFLUENCIA MINIMA 4200KG/CM2  DE DISTINTOS DIAMETROS (SEGÚN DISEÑO ESTRUCTURAL DEL PROYECTO). INCLUYE: MATERIAL, MANO DE OBRA, EQUIPO, HERRAMIENTA, CORTES, TRASLAPES, HABILITADO, AMARRES Y ACARREO HASTA EL LUGAR.","KG",525,null," Pesos   0 0/100 M.N",0]
["DOPI-113","CIMBRA ACABADO COMÚN EN DALAS Y CASTILLOS A BASE DE MADERA DE PINO DE 2A, PARA CAJA DE VÁLVULAS Y POZOS DE VISITA, INCLUYE: MATERIALES, ACARREOS, CORTES, HABILITADO, CIMBRADO, DESCIMBRA, MANO DE OBRA, EQUIPO Y HERRAMIENTA.","M2",53.550000000000004,null," Pesos   0 0/100 M.N",0]
["DOPI-114","SUMINISTRO Y COLOCACIÓN DE CONCRETO HECHO EN OBRA F'C=200 KG/CM2 RESISTENCIA NORMAL, INCLUYE: MATERIALES, COLADO, VIBRADO, DESCIMBRA, CURADO,  MANO DE OBRA, EQUIPO Y HERRAMIENTA.","M3",6.3000000000000007,null," Pesos   0 0/100 M.N",0]
["DOPI-115","SUMINISTRO Y COLOCACIÓN DE CONCRETO PREMEZCLADO F'C= 200 KG/CM2, T.MA. 3/4\", R.N., ADICIONADO CON FIBRA DE POLIPROPILENO EN PROPORCIÓN 140 GR/M3, INCLUYE: HERRAMIENTA, ACARREOS, COLADO, VIBRADO, DESPERDICIO, CURADO, MATERIALES, EQUIPO Y MANO DE OBRA.","M3",4.2,null," Pesos   0 0/100 M.N",0]
["DOPI-116","RELLENO EN CEPAS O MESETAS DE SUELO-CEMENTO, A BASE DE MATERIAL DE BANCO, EN PROPORCIÓN DE 10:1, COMPACTADO CON COMPACTADOR DE IMPACTO EN CAPAS NO MAYORES DE 20 CM AL 95% DE SU P.V.S.M, PRUEBA AASHTO ESTÁNDAR, INCLUYE: HERRAMIENTA, SUMINISTRO DE AGUA PARA LOGRAR HUMEDAD ÓPTIMA, MEZCLADO, TENDIDO, EQUIPO, PRUEBAS DE COMPACTACIÓN, EQUIPO Y MANO DE OBRA. (MEDIDO EN TERRENO NATURAL POR SECCIÓN SEGÚN PROYECTOS.)","M3",7.3500000000000005,null," Pesos   0 0/100 M.N",0]
["DOPI-117","SUMINISTRO Y COLOCACIÓN DE TAPA PARA REGISTRO DE CISTERNA CON MEDIDAS A PAÑOS DE 80 X 80 CM, CONSTRUIDA POR CONTRAMARCO DE ÁNGULO DE 2 1/2\" X 3/16 MM, PARA RECIBIR MARCO DE ÁNGULO DE 2\" X 1/4 MM, TAPA DE 5 CM DE ESPESOR A BASE DE CONCRETO F'C= 200 KG/CM2, T.M.A. 13 MM, R.N., ADICIONADA CON FIBRA DE POLIPROPILENO EN PROPORCIÓN 200 GR/M3, REFORZADA CON MALLA ELECTROSOLDADA 6 X 6 - 10/10, Y DOS JALADERAS DE 15 CM TIPO GRAPA A BASE DE ALAMBRÓN EMBUTIDO EN TAPA, INCLUYE: HERRAMIENTA, ACARREOS, CORTES, SOLDADURAS, ANCLAJES, FIJACIÓN, DESPERDICIOS, MATERIALES, EQUIPO Y MANO DE OBRA.","PZA",1,null," Pesos   0 0/100 M.N",0]
["A.11","EQUIPO HIDRAULICO",null,0,null,null,{"$f":"SUM(G147:G148)","v":0}]
["DOPI-118","SUMINISTRO Y COLOCACION DE CISTERNA DE POLIETILENO DE ALTA DENSIDAD CAP. 5,000 LTS. MCA. ROTOPLAS. INCLUYE: 1 VALVULA ESFERA DE 3/4\" CON REDUCCION A 1/2\", 1 FILTRO DE PASO, 1 VALVULA DE TANQUE ALTO DE 3/4\" CON REDUCCION A 1/2\" ,1 FLOTADOR, 2  ELECTRONIVELES, 1  PICHANCHA Y TUBERIA, SUMINISTRO Y COLOCACION, BASE SOPORTE DE ARENA DE RIO DE ACUERDO CON LAS INDICACIONES DEL FABRICANTE, EXCAVACION CON SECCION DE 2.00 X 2.00 X 1.90 MTS., MATERIAL, MANO DE OBRA Y HERRAMIENTA.","PZA",1,null,{"$f":"Enletras(E147)","v":" Pesos   0 0/100 M.N"},{"$f":"ROUND((E147*D147),2)","v":0}]
["DOPI-119","SUMINISTRO Y COLOCACIÓN DE BOMBA HIDRONEUMÁTICA DE 1-1/2\" HP, 150 LITROS, DIMENSIONES 60 X 148 X 50 CM, CÓDIGO: 12257 CLAVE: HIDR-1-1/2X150 O SIMILAR, VELOCIDAD 3,400 RPM, TENSIÓN / FRECUENCIA 127 V / 60 HZ, CONSUMO 11 A, CON BOMBA TIPO \"JET\" CON CABEZAL DE ACERO INOXIDABLE RESISTENTE A LA CORROSIÓN Y SILENCIOSO, CON SISTEMA DE PARO AUTOMÁTICO, MANÓMETRO PARA HIDRONEUMÁTICO DE 50 L CÓDIGO: 101712 CLAVE: MANO-HIDR O SIMILAR, MANGUERA PARA HIDRONEUMÁTICOS DE 100 Y 150 L CÓDIGO: 101714 CLAVE: MAN-HIDR1015 O SIMILAR, INCLUYE: HERRAMIENTA, ACARREOS, ELEMENTOS DE FIJACIÓN, CONEXIONES, AJUSTES, PRUEBAS, MATERIALES, EQUIPO Y MANO DE OBRA.","PZA",1,null," Pesos   0 0/100 M.N",0]
["A.12","INSTALACIÓN DE GAS",null,0,null,null,{"$f":"SUM(G150:G150)","v":0}]
["DOPI-120","RETIRO Y REUBICACIÓN DE TANQUE ESTACIONARIO EXISTENTE (CON CAPACIDAD DE HASTA 500 L) UBICADO A NIVEL DE PISO (N ± 0.00) PARA REUBICAR EN ZONA DE CONTENEDOR (ÁREA DE CONTENEDOR DE BASURA), INCLUYE: HERRAMIENTA, DESCONEXIONES, RETIRO DE ELEMENTOS DE FIJACIÓN, ELEVACIÓN POR MEDIOS MANUALES Y/O MECÁNICOS A UNA ALTURA PROMEDIO DE 3.80 M, ACARREOS, COLOCACIÓN DE TANQUE ESTACIONARIO FIJÁNDOLO A LA BASE EXISTENTE CON TORNILLO, RONDANA Y TUERCA, AJUSTES, CONEXIONES, PRUEBAS, ELEVACIONES, MATERIALES, EQUIPO Y MANO DE OBRA.","PZA",6,null,{"$f":"Enletras(E150)","v":" Pesos   0 0/100 M.N"},{"$f":"ROUND((E150*D150),2)","v":0}]
["A.13","AREAS VERDES Y ARBOLADO",null,0,null,null,{"$f":"SUM(G152:G154)","v":0}]
["DOPI-121","DERRIBO Y DESTOCONADO DE ÁRBOL DE 4.00 A 5.00 M DE ALTURA Y 30 CM DE DIÁMETRO, INCLUYE: PODA CON MOTOSIERRA, HACHA Y MACHETE, CARGA Y RETIRO FUERA DE LA OBRA, MANO DE OBRA Y HERRAMIENTAS NECESARIAS.","PZA",3,null,{"$f":"Enletras(E152)","v":" Pesos   0 0/100 M.N"},{"$f":"ROUND((E152*D152),2)","v":0}]
["DOPI-122","DERRIBO Y DESTOCONADO DE ÁRBOL DE 5.00 A 8.00 M DE ALTURA Y 45 CM DE DIÁMETRO, INCLUYE PODA CON MOTOSIERRA, HACHA Y MACHETE, CARGA Y RETIRO FUERA DE LA OBRA, MANO DE OBRA Y HERRAMIENTAS NECESARIAS.","PZA",3,null," Pesos   0 0/100 M.N",0]
["DOPI-123","TRASPLANTE DE ARBOL EXISTENTE DE 7-10 M DE ALTURA PROMEDIO CON TRONCO PROMEDIO DE 8\"-10\", INCLUYE: EXCAVACIÓN MECÁNICA, CARGA A CAMION, TRASLADO, EXCAVACION, COLOCACION DE ARBOL, TIERRA VEGETAL, RIEGO DE AGUA, VITAMINAS, MANO DE OBRA Y HERRAMIENTA.","PZA",7,null," Pesos   0 0/100 M.N",0]
[]
[]
[]
[]
[]
[null,"RESUMEN DE PARTIDAS"]
[null,{"$f":"B7","v":"Mantenimiento y adecuacion de espacios con trabajos de sustitucion de cubiertas, pisos de concreto, instalaciones electricas, hidraulicas, sanitarias, asi obras complementarias, en el mercado Ciudad Granja, con domicilio calzada norte, Calzada de las Palmas en colonia Ciudad Granja en Zapopan Jalisco."}]
[]
[]
[{"$f":"A12","v":0},{"$f":"B12","v":0},null,null,null,null,{"$f":"G12","v":0}]
["A",{"$f":"VLOOKUP(A165,$A$18:$G$136,2,FALSE)","v":"MERCADO CIUDAD GRANJA"},null,null,null,null,{"$f":"VLOOKUP(A165,A18:G156,7,)","v":0}]
["A.1",{"$f":"VLOOKUP(A166,$A$19:$G$156,2,FALSE)","v":"PRELIMINARES"},null,null,null,null,{"$f":"VLOOKUP(A166,A19:G156,7,FALSE)","v":0}]
["A.2","PISOS Y BAÑOS",null,null,null,null,{"$f":"VLOOKUP(A167,A20:G156,7,FALSE)","v":0}]
["A.3","CIMENTACIONES ANCLAJES ESTRUCTURAL",null,null,null,null,{"$f":"VLOOKUP(A168,A40:G156,7,FALSE)","v":0}]
["A.4","ALBANILERIAS Y PINTURA",null,null,null,null,{"$f":"VLOOKUP(A169,A40:G160,7,FALSE)","v":0}]
["A.5","ESTRUCTURA Y CUBIERTAS",null,null,null,null,{"$f":"VLOOKUP(A170,A40:G161,7,FALSE)","v":0}]
["A.6","ELECTRICIDAD",null,null,null,null,{"$f":"VLOOKUP(A171,A41:G162,7,FALSE)","v":0}]
["A.7","FONTANERIA Y BAJANTES",null,null,null,null,{"$f":"VLOOKUP(A172,A50:G163,7,FALSE)","v":0}]
["A.8","VENTANERIA",null,null,null,null,{"$f":"VLOOKUP(A173,A51:G163,7,FALSE)","v":0}]
["A.9","SEÑALETICA",null,null,null,null,{"$f":"VLOOKUP(A174,A53:G163,7,FALSE)","v":0}]
["A.10","CISTERNA",null,null,null,null,{"$f":"VLOOKUP(A175,A54:G163,7,FALSE)","v":0}]
["A.11","EQUIPO HIDRAULICO",null,null,null,null,{"$f":"VLOOKUP(A176,A55:G164,7,FALSE)","v":0}]
["A.12","INSTALACIÓN DE GAS",null,null,null,null,0]
["A.13","AREAS VERDES Y ARBOLADO",null,null,null,null,0]
[]
[]
[]
[]
[]
[]
["IMPORTE TOTAL CON LETRA",null,null,null,null,"SUBTOTAL M. N.",{"$f":"G165","v":0}]
[{"$f":"Enletras(G187)","v":" Pesos   0 0/100 M.N"},null,null,null,null,"IVA M. N.",{"$f":"G185*0.16","v":0}]
[null,null,null,null,null,"TOTAL M. N.",{"$f":"G185+G186","v":0}]